Cogmind - Beta 16 @@@ ROGUE MODE // 2026.01.29 @ 21:54:39 Player: Assis Result: Destroyed by B7-1GN(R) with Subdweller Beam Cannon Performance ------------- Evolutions (0) 0 Regions Visited (2) 400 Robots Destroyed (27) 135 Value Destroyed (724) 724 Prototype IDs (0) 0 Alien Tech Used (0) 0 Bonus (0) 0 TOTAL SCORE: 1259 Bonus ------- None Cogmind --------- Core Integrity 0/250 Matter 300/300 Energy 200/200 System Corruption 1% Temperature Cool (24) Movement Treading (160) Location -10/Subcaves Parts ------- > --- POWER (1) -------- Subdweller Power Source > --- PROPULSION (2) --- Light Treads Spiked Treads > --- UTILITY (2) ------ Medium Storage Unit Subdweller Optics > --- WEAPON (2) ------- Particle Gun Particle Gun > --- INVENTORY (10) --- Ion Engine Improved Treads Improved Treads Weight Redist. System Structural Scanner Visual Processing Unit Improved Terrain Scanner Terrain Scan Processor Hacking Suite Hacking Suite Peak State ------------ > --- POWER ------------ Subdweller Power Source > --- PROPULSION ------- Light Treads Spiked Treads > --- UTILITY ---------- Medium Storage Unit Subdweller Optics > --- WEAPON ----------- Particle Gun Particle Gun > --- INVENTORY -------- Ion Engine Improved Treads Improved Treads Weight Redist. System Structural Scanner Visual Processing Unit Improved Terrain Scanner Terrain Scan Processor Hacking Suite Hacking Suite [Rating: 14] Favorites ----------- Power Ion Engine Engine Ion Engine Propulsion Light Treads Treads Light Treads Utility Medium Storage Unit Device Seismic Detector Storage Medium Storage Unit Weapon Particle Gun Energy Gun Particle Gun Ballistic Gun Light Assault Rifle Build | -11 -10 -10 ------- Run | Yrd Mat Sub Slots Evolved . | . . . Power . | . . . Propulsion . | . . . Utility . | . . . Weapon . | . . . Parts Attached 23 | 8 12 3 Power 6 | 1 4 1 Engine 6 | 1 4 1 Core . | . . . Reactor . | . . . Propulsion 8 | 2 5 1 Treads 8 | 2 5 1 Leg . | . . . Wheel . | . . . Hover . | . . . Flight . | . . . Utility 4 | 2 1 1 Device 2 | 1 . 1 Storage 2 | 1 1 . Processor . | . . . Hackware . | . . . Protection . | . . . Artifact . | . . . Weapon 5 | 3 2 . Energy Gun 3 | 1 2 . Energy Cannon . | . . . Ballistic Gun 2 | 2 . . Ballistic Cannon . | . . . Launcher . | . . . Special Weapon . | . . . Impact Weapon . | . . . Slashing Weapon . | . . . Piercing Weapon . | . . . Special Melee Weapon . | . . . Unidentified Prototypes . | . . . Parts Lost 3 | . 3 . Power . | . . . Propulsion . | . . . Utility 1 | . 1 . Weapon 2 | . 2 . Highest Loss Streak 2 | . 2 . To Critical Strikes . | . . . Average Backups 8 | . 7 10 Power 1 | . 1 1 Propulsion 1 | . 1 2 Utility 5 | . 4 7 Weapon . | . . . Tool/Special . | . . . Unused Backups 12 | . 2 10 Power 3 | . 2 1 Propulsion 2 | . . 2 Utility 7 | . . 7 Weapon . | . . . Tool/Special . | . . . Average Slot Usage (%) 90 | . 88 94 Engine 14 | . 14 14 Treads 28 | . 28 28 Device 8 | . 8 9 Storage 14 | . 14 14 Energy Gun 13 | . 4 28 Ballistic Gun 11 | . 18 . Peak Build Rating 14 | 7 10 14 Average Rating 9 | 5 8 11 On Entrance 5 | . 7 10 Avg Prop Armor Cover (%) . | . . . Naked Turns . | . . . Heaviest Build 23 | 13 21 23 Greatest Support 46 | 40 46 40 Greatest Overweight (x) . | . . . Average Overweight (x) . | . . . Largest Inventory Capacity 10 | 8 10 10 Average Capacity 9 | 7 8 10 Most Carried 10 | 2 10 10 Average Carried 8 | . 7 10 Final Capacity 10 | 8 10 10 Final Carried 10 | 2 10 10 Class Distribution -------------------- 100% | Mutant Dominant Class ---------------- Mutant | -10/Materials Mutant | -10/Subcaves Resources | -11 -10 -10 ----------- Run | Yrd Mat Sub Matter Collected 627 | . 576 51 Remotely . | . . . Salvage Created 975 | 23 789 163 Parts 49 | 3 37 9 Haulers Intercepted 2 | . 2 . Recyclers Shooed 2 | 1 1 . Parts Field Recycled . | . . . Retrieved Matter . | . . . Parts Self-Destructed 8 | . . 8 Prevented . | . . . Parts Restored . | . . . Kills | -11 -10 -10 ------- Run | Yrd Mat Sub Combat Hostiles Destroyed 17 | . 13 4 Melee 1 | . 1 . Guns 16 | . 12 4 Classes Destroyed 9 | 1 6 2 Builder 1 | . 1 . Tunneler 3 | 1 2 . Hauler 2 | . 2 . Recycler 1 | . 1 . Operator 2 | . 2 . Watcher 1 | . 1 . Grunt 14 | . 13 1 Sentry 1 | . . 1 Subdweller 2 | . . 2 Best Kill Streak 2 | 1 2 2 Combat Bots Only 2 | . 2 2 Max Kills in Single Turn 1 | 1 1 1 Gunslinging . | . . . Exploded . | . . . Melee 1 | . 1 . Uniques/NPCs Destroyed . | . . . Combat | -11 -10 -10 -------- Run | Yrd Mat Sub Hostile Shots Fired 117 | . 87 30 Missed 25 | . 15 10 Hits 92 | . 72 20 Projectile 92 | . 72 20 Critical Strikes 3 | . 2 1 Damage Taken 1260 | . 923 337 Core 262 | . 157 105 Absorbed by Shields . | . . . Core Remaining (%) 100 | 100 . . Volleys Fired 146 | 8 123 15 Largest 2 | 2 2 2 Hottest 130 | 40 130 130 Shots Fired 262 | 16 216 30 Gun 262 | 16 216 30 Cannon . | . . . Launcher . | . . . Special . | . . . Kinetic 216 | 16 200 . Thermal 46 | . 16 30 Explosive . | . . . Electromagnetic . | . . . Robot Hit Streak 11 | 7 11 11 Robot Miss Streak 4 | 1 4 1 Penetration Max . | . . . Secondary Targets 2 | . 1 1 Max Gunslinging Chain 1 | . 1 1 Shots Hit Robots 175 | 12 138 25 Core Hits 63 | 4 51 8 Critical Kills . | . . . Critical Parts Destroyed . | . . . Critical Strikes 1 | . . 1 Burn 1 | . . 1 Melee Attacks . | . . . Impact . | . . . Slashing . | . . . Piercing . | . . . Sneak Attacks . | . . . Combat Hostiles . | . . . Follow-up Attacks . | . . . Damage Inflicted 1710 | 103 1199 408 Guns 1682 | 103 1171 408 Cannons . | . . . Explosions . | . . . Melee . | . . . Ramming 28 | . 28 . Kinetic 1148 | 103 1045 . Thermal 534 | . 126 408 Explosive . | . . . Electromagnetic . | . . . Impact . | . . . Slashing . | . . . Piercing . | . . . Highest Corruption 1 | . 1 1 Average Corruption 1 | . 1 1 Corruption Purged . | . . . Corruption Blocked . | . . . Effects 20 | . 7 13 Message Errors 6 | . 3 3 Matter Fused 3 | . . 3 Heat Flow Errors 4 | . 1 3 Energy Discharges 4 | . 1 3 Data Loss (minor) 2 | . 1 1 Misfires 1 | . 1 . Overload Shots . | . . . Overflow Damage . | . . . Projectiles . | . . . Explosions . | . . . Melee . | . . . Knockbacks . | . . . Impact . | . . . Kinetic . | . . . Secondary . | . . . Self-Inflicted Damage . | . . . Shots . | . . . Rammed 10 | . 10 . Targets Rammed 13 | . 13 . Kicked . | . . . Crushed 3 | . 3 . Highest Temperature 276 | . 276 192 Average Temperature 48 | . 47 51 Received Heat Transfer 654 | . 546 108 Siege Activations . | . . . Martial Activations . | . . . Shielding Activations . | . . . Robots Disrupted . | . . . Combat Hostiles . | . . . Robots Corrupted . | . . . Combat Hostiles . | . . . Parts Fried . | . . . Impact Corruptions . | . . . Robots Melted . | . . . Combat Hostiles . | . . . Parts Melted 2 | . . 2 Heat Transferred 1332 | . 296 1036 Parts Sabotaged . | . . . Parts Stolen . | . . . Parts Stripped . | . . . Power Chain Reactions . | . . . Alert | -11 -10 -10 ------- Run | Yrd Mat Sub Maximum Alert Level . | . . . Low Security (%) 100 | 100 100 . Level 1 . | . . . Level 2 . | . . . Level 3 . | . . . Level 4 . | . . . Level 5 . | . . . High Security . | . . . Max Security . | . . . Peak Influence 84 | 5 84 . Initial . | . . . Average 18 | . 19 . Influence Increases 463 | 5 418 40 Destroy 0b10 Robot/C 300 | . 260 40 Destroy 0b10 Robot/NC 50 | 5 45 . Destroy Leader 66 | . 66 . Destroy Structure 2 | . 2 . Lose Combat Pursuer 45 | . 45 . Influence Decreases 431 | 5 409 17 Entered New Map 5 | . . 5 Time Decay 426 | 5 409 12 Squads Dispatched 3 | . 3 . Investigation 1 | . 1 . Extermination . | . . . Reinforcement 2 | . 2 . Assault . | . . . Garrison . | . . . Intercept . | . . . Searches Triggered . | . . . Construction Impeded . | . . . Haulers Reinforced . | . . . Active Scanning Responses . | . . . Cargo Convoy Interrupts . | . . . Stealth | -11 -10 -10 --------- Run | Yrd Mat Sub Distress Signals 5 | . 5 . Communications Jammed . | . . . Distress Signals . | . . . Times Spotted 42 | . 36 6 Peak Tracking Total 4 | . 4 2 Tactical Retreats 3 | . 3 . Traps | -11 -10 -10 ------- Run | Yrd Mat Sub Traps Triggered 2 | . 2 . Indirectly . | . . . Trap Hack Attempts . | . . . Triggered . | . . . Disarmed . | . . . Reprogrammed . | . . . Reused . | . . . Traps Extracted . | . . . Installed . | . . . Triggered . | . . . Machines | -11 -10 -10 ---------- Run | Yrd Mat Sub Machines Disabled . | . . . Max in Single Turn . | . . . Machines Repaired . | . . . Machines Dismantled . | . . . Machines Sabotaged . | . . . Overloaded Fab Kills . | . . . Hacking | -11 -10 -10 --------- Run | Yrd Mat Sub Machines Accessed 3 | . 1 2 Terminals 1 | . 1 . Fabricators . | . . . Repair Stations . | . . . Recycling Units . | . . . Scanalyzers . | . . . Garrison Access . | . . . Total Hacks 5 | . 2 3 Successful 3 | . . 3 Failed 2 | . 2 . Catastrophic . | . . . Database Lockouts . | . . . Manual 2 | . 2 . Terminals 2 | . 2 . Fabricators . | . . . Repair Stations . | . . . Recycling Units . | . . . Scanalyzers . | . . . Garrison Access . | . . . Terminal Hacks 3 | . . 3 Record 1 | . . 1 Open Door 1 | . . 1 Release Object 1 | . . 1 Fabricator Hacks . | . . . Repair Station Hacks . | . . . Recycling Unit Hacks . | . . . Scanalyzer . | . . . Garrison Access Hacks . | . . . Unauthorized Hacks . | . . . Terminals . | . . . Fabricators . | . . . Repair Stations . | . . . Recycling Units . | . . . Scanalyzers . | . . . Garrison Access . | . . . Data Cores Recovered . | . . . Used . | . . . Hacking Detections 1 | . 1 . Full Trace Events . | . . . Feedback Events . | . . . Feedback Blocked . | . . . Robot Schematics Acquired . | . . . Robots Built . | . . . Authchips . | . . . Time . | . . . Total Robot Build Rating . | . . . Part Schematics Acquired . | . . . Parts Built . | . . . Authchips . | . . . Time . | . . . Total Part Build Rating . | . . . Part Studies Acquired . | . . . Parts Repaired . | . . . Time . | . . . Parts Recycled . | . . . Recycled Matter . | . . . Retrieved Matter . | . . . Retrieved Components . | . . . Parts Scanalyzed . | . . . Part Schematics Acquired . | . . . Parts Damaged . | . . . Bothacking | -11 -10 -10 ------------ Run | Yrd Mat Sub Used RIF Installer . | . . . Robots Hacked . | . . . Non-combat . | . . . Combat . | . . . Robot Hacks Applied . | . . . Relay Couplers Released . | . . . Fabnet Peak Effective % . | . . . Robots Rewired . | . . . Allies Hacked . | . . . Hacks Repelled . | . . . Allies | -11 -10 -10 -------- Run | Yrd Mat Sub Total Allies . | . . . Largest Group . | . . . Highest-Rated Group . | . . . Highest-Rated Ally . | . . . Total Orders . | . . . Ally Attacks . | . . . Total Damage . | . . . Kills . | . . . Allies Corrupted . | . . . Allies Melted . | . . . Intel | -11 -10 -10 ------- Run | Yrd Mat Sub Active Infowar (turns) 1607 | 38 1350 219 Optics 219 | . . 219 Seismic 1388 | 38 1350 . Robot Analysis Total . | . . . Derelict Logs Recovered . | . . . Drone Launches . | . . . Drone Recoveries . | . . . Exploration | -11 -10 -10 ------------- Run | Yrd Mat Sub Turns Passed 3984 | 150 2376 1458 Spaces Moved 1961 | 85 1159 717 Core 18 | 18 . . Treads 1943 | 67 1159 717 Legs . | . . . Wheels . | . . . Hover . | . . . Flight . | . . . Fastest Speed 50 | 50 160 160 Average Speed 158 | 136 160 160 Slowest Speed 160 | 160 160 160 Overloaded Moves . | . . . Propulsion Burnouts . | . . . Robots Hopped . | . . . Potential Cave-ins . | . . . Cave-ins Triggered . | . . . Exploration Rate (%) 40 | 5 87 28 Regions Visited 2 Branch Regions 1 Pre-discovered Areas . | . . . Known Exits Taken . | . . . Unknown Exits Taken 2 | 1 1 . Scrap Searched . | . . . Spaces Dug . | . . . Terrain Destroyed . | . . . Melee . | . . . Projectile . | . . . AOE . | . . . Terrain Rammed . | . . . Walls Destroyed . | . . . Machines Disabled . | . . . Actions | -11 -10 -10 --------- Run | Yrd Mat Sub Total 2599 | 102 1499 998 Wait 433 | . 172 261 Move 1959 | 84 1158 717 Hop . | . . . Pick Up 12 | 2 10 . Fast Attach 11 | 7 3 1 Attach . | . . . Detach 1 | . 1 . Swap 12 | 1 9 2 Drop 12 | . 10 2 Fire 146 | 8 123 15 Melee . | . . . Ram . | . . . Kick . | . . . Crush 13 | . 13 . Escape Stasis . | . . . Rewire . | . . . Trap . | . . . Miscellaneous . | . . . Route ------- -11/Scrapyard -10/Materials (discovered 5 exits: [*Mat x3] / [*Min] / *Sub) -10/Subcaves History --------- Turn | Location | Event 14 | -11/Scrapyard | Discovered new exit (range 15) 151 | -11/Scrapyard | Entered Materials 304 | -10/Materials | Build established: Mutant 1096 | -10/Materials | Discovered new exit (range 10) 1232 | -10/Materials | Discovered new exit (range 15) 1312 | -10/Materials | Discovered new exit (range 16) 1850 | -10/Materials | Core integrity fell below 50% 1873 | -10/Materials | Discovered new exit (range 12) 2514 | -10/Materials | Discovered new exit (range 7) 2527 | -10/Materials | Entered Subcaves 2528 | -10/Subcaves | Approached by a straggling Scientist 3618 | -10/Subcaves | Shifting Twisted Machinery released Sub. Laser 3948 | -10/Subcaves | Core integrity fell below 20% 3985 | -10/Subcaves | Destroyed by B7-1GN(R) with Subdweller Beam Cannon Last Messages --------------- Collection purity confirmed 100%... Ejecting SUBCON Basin... Delivery behind schedule, handle with care! 03796_ Dropped Lgt. Treads. 03798_ Subatomizers dissect the Lgt. Treads. 03830_ System corrupted: Matter fused (-9). 03835_ Subatomizers dissect the Lgt. Treads. 03934_ 4AI ZBA NWZ C%ED0FJ7N 03938_ Destroyed Heat Sink. 03941_ G-34 Mercenary destroyed. 03941_ Switching to secondary target: Y-45 Defender. 03945_ Ion Engine fries itself beyond repair. 03947_ Y-45 Defender suffers critical hit (Burn). 03950_ Aluminum Leg fries itself beyond repair. 03950_ Y-45 Defender destroyed. 03953_ Subatomizers dissect the Lgt. Treads. 03954_ Heat Sink fries itself beyond repair. 03955_ Beam Rifle fries itself beyond repair. 03959_ Lgt. Treads fries itself beyond repair. 03960_ Acquired 45 matter. Map ----- +----------------------------------------------------+ | ?????????????????????????????????????????????????? | | ?????????????????????????????????????????????????? | | ?????????????????????????????????????????????????? | | ?????????????????????????????????????????????????? | | ?????????????????????????????????????????????????? | | ?????????????????????????????????????????????????? | | ?????????????????????????????????????????????????? | | ?????????????????????????????????????????????????? | | ?????????????????????????????????????????????????? | | ?????????????????????????????????????????????????? | | ?????????????????????????????????????????????????? | | #???###??????????????????????????????????????????? | | ##?# ##?????????????????????????????????????????? | | ## #?????????????????????????????????????????? | | #???????????###??????##???????????????????? | | #????????????? ##???? #???????????????????? | | ##?????????????? ##??? #???????????????????? | | ##???????????????# #?? #???????????????????? | | ########?????????## ##? ##??????????????????? | | # ##?######## #? #??????????????????? | | ### ## # ## ## #??????????????????? | | ### # & #???????????????????? | | ####### %% ####????????????????? | | # ##???# ## # #& #????????????????? | | ## #???############### ##???????????????? | | ?## ##??##????????????##@ #???????????????? | | ??## ### #?????????????# R"" "#???????????????? | | ???# ##???????????? ##???????????????? | | ???## ##???????????# R### #???????????????? | | ##??## ##??????????" ?? ##???????????????? | | #### #??????????"""# ?? #???????????????? | | ### ##?????????? """ ??? ??????????????? | | #??###??????????? " "? ??? ?????????????? | | #### ###?????????""" ?"??? ????????????? | | #?????????#? ?????? ????????????? | | ## = #???????????? ?????????????????????? | | ## ## #??????????????????????????????????? | | #### #??????????????????????????????????? | | ###?## #??????????????????????????????????? | | ###??## ##??????????????????????????????????? | | ###???## #???????????????????????????????????? | | #????# ###???????????????????????????????????? | | ##???## ##?????????????????????????????????????? | | #????# ##?????????????????????????????????????? | | #????# #?????????????????????????????????????? | | ##### ##?????????????????????????????????????? | | # #??????????????????????????????????????? | | #??????????????????????????????????????? | | ###########????????????????????????????????????? | | ## # # # # #????????????????????????????????????? | +----------------------------------------------------+ Best States ------------- Heat Dissipation 25 Energy Generation 15 Energy Capacity 250 Matter Stores 300 Matter Capacity 300 Sight Range 21 Terrain Scan Density 10 Evasion (%) 50 Recoil Reduction 2 Item Schematics ----------------- None Robot Schematics ------------------ None Fabricated ------------ Nothing Repaired ---------- Nothing Studied --------- None Alien Tech Used ----------------- None Achievements -------------- None Challenges ------------ None Game ------ Seed ShieldPlatingDiverter Manual? 0 Play Time 00:21:45 Cumulative 28.5 hours Start 2026.01.29 @ 21:33:50 End 2026.01.29 @ 21:54:39 Sessions 1 Manual Loads 0 Difficulty Rogue Special Mode None Game No. 60 Rogue 60 Adventurer 0 Explorer 0 Win Type - Total 0 Types 0/0/0/0/0/0/0/0/0/0 Lore% 16 Gallery% 22 Achievement% 19 Wizard Run 0 Options --------- Layout 0 ASCII 0 Keyboard 1 Movement Arrows Keybinds 0 Fullscreen 1 Font 18/Smallcaps Map View 38x25 Zoom Use 83% Tactical HUD 1 Map Filters NONE Filters NONE Steam 1 RUN: 3bfd8283-0c84-4e41-a186-25b82831f601